bitfinex/quotes_ETHUSD_20240621
["timestamp","ask_amount","ask_price","bid_price","bid_amount"]
[1718969975489,2.0741677,3507.1,3506.8,2.4773]
[1718969975676,2.0741677,3507.0,3506.8,2.4773]
[1718969975865,2.07417069,3506.9,3506.8,2.4773]
[1718969976293,2.07392805,3507.7,3506.8,2.4773]
[1718969976497,2.56771859,3507.6,3506.9,0.55]
[1718969976779,2.07392805,3507.5,3506.9,0.55]
[1718969977084,2.07392805,3507.4,3507.1,2.4031]
[1718969977299,2.07392805,3507.3,3507.2,0.55]
[1718969977624,2.07375538,3508.5,3507.1,2.4031]
[1718969977805,4.64145434,3508.4,3507.1,9.25108959]
[1718969978015,0.59922073,3508.6,3507.1,9.25108959]
[1718969978016,7.64145434,3508.3,3507.1,9.25108959]
[1718969978232,5.40559977,3508.2,3507.1,9.25108959]
[1718969978515,7.64145434,3508.1,3507.1,9.25108959]
[1718969978813,4.64145434,3508.0,3507.1,9.25108959]
[1718969979018,4.64145434,3507.9,3507.1,9.25108959]
[1718969979187,4.64145434,3507.8,3507.1,9.25108959]
[1718969979514,4.64145434,3507.7,3507.1,10.17619855]
[1718969979833,3.0,3508.1,3507.1,3.32820896]
[1718969979834,4.64145434,3507.6,3507.1,3.32820896]
[1718969979989,4.64145434,3507.5,3507.1,2.4031]
[1718969980311,4.64145434,3507.4,3507.1,2.4031]
[1718969980475,2.07375538,3507.3,3507.2,0.24031]
[1718969980817,2.07394726,3507.3,3507.2,0.24031]
[1718969980973,2.07394528,3507.3,3507.2,0.24031]
[1718969981186,2.07394528,3508.4,3507.2,0.24031]
[1718969981416,5.24972193,3508.3,3507.2,0.24031]
[1718969981626,7.64164951,3508.2,3507.2,0.24031]
[1718969981821,4.64158278,3508.1,3507.2,0.24031]
[1718969982019,7.64158278,3508.0,3507.2,0.24031]
[1718969982195,4.64158278,3507.9,3507.3,0.264341]
[1718969982396,4.64158278,3507.8,3507.4,0.02582619]
[1718969982609,4.64158278,3507.7,3507.3,0.264341]
[1718969982904,4.64158278,3507.6,3507.4,0.02607248]
[1718969983111,4.64158278,3507.5,3507.4,0.02607248]
[1718969983325,4.64158278,3507.5,3507.4,0.26935135]
[1718969983623,2.07387983,3507.5,3507.4,0.26935135]
[1718969983851,2.0737348,3507.5,3507.4,0.26935135]
[1718969983990,2.0737348,3507.5,3507.4,0.29539567]
[1718969984317,4.1475318,3507.5,3507.4,0.29539567]
[1718969984699,4.1475318,3507.5,3507.4,0.26935135]
[1718969986428,4.64129346,3507.5,3507.4,0.26935135]
[1718969986925,2.073797,3507.5,3507.4,0.26935135]
[1718969987142,2.56757005,3507.5,3507.4,0.26935135]
[1718969987423,4.64136705,3507.5,3507.4,0.29539567]
[1718969987627,4.64136705,3507.5,3507.4,0.26935135]
[1718969990309,4.64136705,3507.5,3507.1,2.4031]
[1718969990310,4.64144586,3507.5,3507.1,2.4031]
[1718969990453,4.64144586,3507.4,3507.2,0.02592469]
[1718969990700,4.64145272,3507.3,3507.2,0.02592469]
[1718969990816,4.64145272,3507.3,3507.2,0.26882716]
[1718969991448,4.64145626,3507.3,3507.2,0.26882716]
[1718969993118,4.14767564,3507.3,3507.2,2.71722716]
[1718969993424,2.07357056,3507.3,3507.2,5.37222716]
[1718969994207,5.1839264,3508.5,3507.2,5.37222716]
[1718969994445,7.75124465,3508.4,3507.3,0.55]
[1718969994610,4.64088881,3508.3,3507.4,0.02592117]
[1718969994811,4.64088881,3508.2,3507.4,1.24794249]
[1718969995012,4.64088881,3508.1,3507.5,0.55]
[1718969995245,4.64088881,3508.0,3507.6,0.17979425]
[1718969995453,4.64088881,3507.9,3507.7,0.07437999]
[1718969995648,4.14717392,3507.8,3507.7,0.02592117]
[1718969996373,4.14714525,3507.8,3507.7,0.02592117]
[1718969998116,4.14714525,3507.8,3507.5,0.55]
[1718969998320,4.14714525,3507.7,3507.3,0.55]
[1718969998521,4.14714525,3507.6,3507.3,1.69013896]
[1718969998816,4.14714525,3507.5,3507.3,0.55]
[1718969999015,4.14714525,3507.4,3507.3,0.55]
[1718969999602,2.07360336,3507.4,3507.3,0.55]
[1718969999758,4.14722708,3507.4,3507.3,1.06034]
[1718969999998,4.14722687,3507.4,3507.3,1.06034]
[1718970001118,4.14722687,3507.4,3507.3,0.51034]
[1718970001314,4.14722687,3507.4,3507.2,2.4484]
[1718970001525,2.07362351,3507.3,3507.2,2.4484]
[1718970001725,2.281,3508.5,3507.2,2.9984]
[1718970001963,7.75145701,3508.4,3507.3,0.29984]
[1718970002121,7.75145701,3508.3,3507.3,0.84984]
[1718970002414,4.64099774,3508.2,3507.3,0.84984]
[1718970002756,4.64099774,3508.1,3507.4,1.01462296]
[1718970003049,4.64096406,3508.0,3507.5,0.55]
[1718970003250,4.14727405,3507.9,3507.6,0.3969463]
[1718970003549,4.14727405,3507.8,3507.6,0.3969463]
[1718970003853,4.14727405,3507.7,3507.6,0.3969463]
[1718970004065,4.14727405,3507.7,3507.5,0.55]
[1718970004221,4.14727405,3507.6,3507.5,0.55]
[1718970004843,2.07363454,3507.6,3507.5,0.55]
[1718970005068,4.14717099,3507.6,3507.5,0.55]
[1718970005356,4.14717099,3507.6,3507.5,1.415169]
[1718970007442,4.14717099,3507.6,3507.5,2.295169]
[1718970008135,4.14715914,3507.6,3507.5,2.295169]
[1718970008614,4.14715914,3507.6,3507.5,1.43]
[1718970008615,2.07363454,3507.6,3507.5,1.43]
[1718970008771,4.14717152,3507.6,3507.5,1.43]
[1718970009373,4.14717206,3507.6,3507.5,1.43]
[1718970009942,4.14717206,3507.6,3506.9,6.84798959]
[1718970010159,3.37422481,3508.9,3506.9,6.84798959]
[1718970010160,4.6409311,3507.5,3506.9,6.84798959]
[1718970010365,4.6409311,3507.4,3506.9,7.72798959]
[1718970010536,4.6409311,3507.3,3506.9,6.84798959]
[1718970010734,4.6409311,3507.2,3506.9,6.84798959]
[1718970010945,4.6409311,3507.1,3506.9,6.84798959]
[1718970011253,1.21707,3507.7,3506.9,6.84798959]
[1718970011254,2.07363454,3507.0,3506.9,6.84798959]
[1718970011363,4.64168212,3507.0,3506.9,6.84798959]
[1718970014407,4.6416465,3507.0,3506.4,2.4411]
[1718970014586,4.14779805,3506.9,3506.5,0.55]
[1718970014778,4.14779805,3506.8,3506.5,0.55]
[1718970015089,4.14779805,3506.7,3506.3,6.84798959]
[1718970015286,4.14779805,3506.6,3506.4,1.68775896]
[1718970015487,2.07416351,3506.5,3506.4,1.68775896]
[1718970015655,2.07416351,3507.2,3506.4,1.68775896]
[1718970015856,4.64217725,3507.1,3506.4,1.68775896]
[1718970016056,4.64217725,3507.0,3506.5,0.742033]
[1718970016256,4.14832698,3506.9,3506.5,0.742033]
[1718970016487,4.14832698,3506.8,3506.5,0.742033]
[1718970016797,4.14832698,3506.7,3506.6,0.81400226]
[1718970017425,4.14833596,3506.7,3506.6,0.81400226]
[1718970017923,4.14833587,3506.7,3506.6,0.81400226]
[1718970018196,4.14833587,3506.7,3506.3,6.84798959]
[1718970018381,2.3502,3507.3,3506.3,6.84798959]
[1718970018382,4.14833587,3506.6,3506.3,6.84798959]
[1718970018589,4.14855611,3506.5,3506.3,6.84798959]
[1718970018904,2.3502,3507.3,3506.3,6.84798959]
[1718970018905,4.14855611,3506.4,3506.3,6.84798959]
[1718970020208,4.14855611,3506.4,3505.8,2.112]
[1718970020363,2.07439264,3506.3,3506.2,0.55]
[1718970020598,2.07430576,3507.2,3506.2,0.55]
[1718970020782,4.64249251,3507.1,3506.2,0.84676]
[1718970020993,4.64249251,3507.0,3506.2,0.84676]
[1718970021198,4.64249251,3506.9,3506.2,0.84676]
[1718970021413,4.14861031,3506.8,3506.3,0.326436]
[1718970021609,4.14861031,3506.7,3506.2,0.55]
[1718970021813,4.14861031,3506.6,3506.2,0.55]
[1718970022015,4.14861031,3506.5,3505.8,4.5763]
[1718970022196,4.14861031,3506.4,3505.9,0.55]
[1718970022400,2.07430576,3506.3,3505.9,0.55]
[1718970022597,2.07430576,3506.2,3505.9,0.55]
[1718970022913,2.07430576,3506.1,3506.0,1.19742896]
[1718970023117,2.07430576,3507.1,3506.0,0.55]
[1718970023335,4.64251683,3507.0,3505.9,7.39798959]
[1718970023624,2.07432438,3506.9,3505.9,7.39798959]
[1718970023797,4.14864476,3506.8,3505.9,7.39798959]
[1718970023989,4.14864476,3506.7,3506.0,1.19742896]
[1718970024330,4.14864476,3506.6,3506.1,0.55]
[1718970024623,4.14864476,3506.5,3506.1,0.55]
[1718970024832,4.14864476,3506.4,3506.1,0.55]
[1718970025127,2.07432038,3506.3,3506.0,0.55]
[1718970025301,3.0,3507.2,3506.0,1.74742896]
[1718970025302,2.07432038,3506.2,3506.0,1.74742896]
[1718970025505,2.07432038,3506.1,3506.0,0.55]
[1718970025710,2.07432038,3506.6,3505.9,0.55]
[1718970025926,4.14878102,3506.5,3506.0,0.2662]
[1718970026244,2.4814,3506.7,3505.5,6.84798959]
[1718970026245,4.14878102,3506.4,3505.5,6.84798959]
[1718970026548,2.4814,3506.7,3505.5,6.84798959]
[1718970026549,4.14878102,3506.3,3505.5,6.84798959]
[1718970026768,2.07446064,3506.2,3505.5,6.84798959]
[1718970027062,4.14911221,3506.1,3505.5,6.84798959]
[1718970027299,4.14911324,3506.0,3505.5,6.84798959]
[1718970027407,2.0746526,3505.9,3505.5,6.84798959]
[1718970027739,2.0746526,3505.8,3505.5,6.84798959]
[1718970027899,2.0746526,3505.7,3505.5,6.84798959]
[1718970028099,2.0746526,3505.6,3505.5,6.84798959]
[1718970028501,2.0746526,3506.5,3505.5,6.84798959]
[1718970028721,4.14931442,3506.4,3505.5,6.84798959]
[1718970028928,4.14931442,3506.3,3505.5,6.84798959]
[1718970029136,4.14931442,3506.2,3505.5,6.84798959]
[1718970029341,0.76974544,3506.3,3505.5,6.84798959]
[1718970029342,4.14931442,3506.1,3505.5,6.84798959]
[1718970029557,4.14931442,3506.0,3505.5,6.84798959]
[1718970029747,4.14931442,3505.9,3505.5,6.84798959]
[1718970029912,2.07466182,3505.8,3505.5,6.84798959]
[1718970030112,2.07485019,3505.7,3505.5,6.84798959]
[1718970030432,4.14974558,3505.6,3504.9,6.84798959]
[1718970030612,2.4529,3506.1,3505.0,0.92451896]
[1718970030613,2.07485019,3505.5,3505.0,0.92451896]
[1718970030813,2.07485019,3505.4,3504.7,2.3972]
[1718970031016,2.07485019,3505.3,3504.7,2.3972]
[1718970031217,2.07485019,3505.2,3504.7,2.3972]
[1718970031417,2.07485019,3505.1,3504.7,2.3972]
[1718970031640,0.881,3506.0,3504.7,2.3972]
[1718970031641,0.881,3506.0,3505.0,0.881]
[1718970031853,0.881,3505.2,3504.8,0.05163969]
[1718970032160,2.2608,3505.2,3504.3,0.881]
[1718970032451,2.07535746,3505.1,3504.9,0.05309632]
[1718970032649,2.07535746,3505.1,3504.3,0.881]
[1718970033160,2.07537378,3505.0,3504.4,0.05309632]
[1718970033491,2.07537378,3504.9,3504.4,0.05309632]
[1718970033690,5.3177,3505.5,3504.4,0.05309632]
[1718970033849,2.07526387,3505.4,3504.4,0.05309632]
[1718970034049,2.07526387,3505.4,3504.5,1.431]
[1718970034050,5.95626387,3505.4,3504.5,1.431]
[1718970034412,2.2896,3504.6,3504.4,0.05309632]
[1718970034601,2.07573506,3504.5,3504.1,0.881]
[1718970034910,2.07573506,3504.5,3504.0,2.4103]
[1718970034911,2.4192,3505.4,3504.3,0.881]
[1718970035210,2.4192,3505.4,3504.0,2.4103]
[1718970035211,2.07541071,3505.3,3504.8,0.881]
[1718970035393,2.4192,3505.7,3504.8,0.05704594]
[1718970036175,2.07515224,3505.6,3504.9,0.59979983]
[1718970036254,2.07515224,3505.6,3504.9,0.04979983]
[1718970036458,2.07527805,3505.5,3504.9,0.04979983]
[1718970036653,2.07545354,3505.4,3503.9,2.4453]
[1718970036905,2.07527805,3505.3,3503.9,2.4453]
[1718970037211,2.07527805,3505.3,3503.5,2.114]
[1718970037212,7.05591009,3505.2,3504.0,0.04979983]
[1718970037384,4.6455653,3505.1,3503.9,6.84798959]
[1718970037571,4.64558993,3505.0,3504.1,0.04813983]
[1718970037777,5.07565337,3504.9,3503.9,6.84798959]
[1718970037974,5.07565337,3504.8,3504.2,0.04647984]
[1718970038281,2.07565337,3504.7,3503.9,6.84798959]
[1718970038495,2.07565337,3504.6,3504.3,0.04487518]
[1718970038701,2.07565337,3504.5,3503.9,6.84798959]
[1718970038871,2.07565337,3505.0,3504.4,0.04487518]
[1718970039095,2.07579376,3504.9,3503.9,6.84798959]
[1718970039286,2.07579376,3504.8,3503.9,6.84798959]
[1718970039491,2.07579376,3504.7,3504.0,0.04338763]
[1718970039801,2.07579376,3504.6,3504.0,0.04338763]
[1718970039983,2.07579376,3504.5,3504.0,0.04338763]
[1718970040177,2.07579376,3504.4,3504.0,0.04338763]
[1718970040355,2.07579376,3504.3,3504.0,0.04338763]
[1718970040561,3.0,3505.1,3504.0,0.04338763]
[1718970040754,4.64630158,3505.0,3504.0,0.04338763]
[1718970041000,5.57032847,3504.9,3504.0,0.04338763]
[1718970041298,2.57032847,3504.8,3504.0,0.04338763]
[1718970041460,5.63306716,3504.7,3504.0,0.04338763]
[1718970041667,2.07603431,3504.6,3504.0,0.04338763]
[1718970042181,2.07599494,3504.5,3504.0,0.04338763]
[1718970042407,2.07599494,3504.4,3504.0,0.04338763]
[1718970042608,2.07599494,3504.3,3504.0,0.04338763]
[1718970042903,3.0,3504.9,3504.0,0.04338763]
[1718970043078,2.73015344,3504.8,3504.0,0.04338763]
[1718970043441,2.3803,3504.6,3504.0,0.04338763]
[1718970043587,2.07604744,3504.5,3504.0,0.04338763]
[1718970043908,5.07604744,3504.5,3504.0,0.04338763]
[1718970044199,2.07604744,3504.4,3503.6,6.84798959]
[1718970044401,5.07604744,3504.4,3504.1,0.04338763]
[1718970044603,3.0,3504.4,3503.6,6.84798959]
[1718970044910,2.07597281,3504.3,3504.2,0.04338763]
[1718970045218,5.07599446,3504.4,3503.6,6.84798959]
[1718970045427,3.0,3504.5,3504.2,0.04338763]
[1718970045428,2.07599446,3504.3,3504.2,0.04338763]
[1718970045599,2.8217853,3504.3,3503.6,6.84798959]
[1718970045789,2.07615585,3504.2,3503.6,6.84798959]
[1718970045989,2.07615585,3504.1,3503.6,6.84798959]
[1718970046199,3.0,3504.5,3503.6,6.84798959]
[1718970046417,2.07616179,3504.4,3503.6,6.84798959]
[1718970046714,2.07616179,3504.3,3503.6,6.84798959]
[1718970047030,3.23803,3504.5,3503.6,6.84798959]
[1718970047031,2.07616179,3504.2,3503.6,6.84798959]
[1718970047180,2.07616179,3504.1,3503.6,6.84798959]
[1718970047385,2.07616179,3504.0,3503.6,6.84798959]
[1718970047580,3.0,3504.3,3503.6,6.84798959]
[1718970047815,0.561833,3504.4,3503.6,6.84798959]
[1718970047816,2.07623102,3504.2,3503.6,6.84798959]
[1718970048153,3.6180163,3504.3,3503.6,6.84798959]
[1718970048418,2.07621795,3504.2,3503.6,6.84798959]
[1718970048627,3.23803,3504.5,3503.6,6.84798959]
[1718970048787,2.07600644,3504.4,3503.6,6.84798959]
[1718970049115,3.0,3504.5,3503.6,6.84798959]
[1718970049116,3.0,3504.5,3503.8,2.3226]
[1718970049321,2.2781,3505.1,3503.8,2.3226]
[1718970049476,2.07567049,3505.0,3503.8,2.3226]
[1718970049899,5.07567049,3505.0,3503.8,2.3226]
[1718970050128,2.07567049,3504.9,3503.8,2.3226]
[1718970050346,5.07567049,3504.9,3503.9,0.91705896]
[1718970050625,2.07567049,3504.8,3503.9,0.97413114]
[1718970051291,3.0,3505.0,3503.9,0.97413114]
[1718970051387,2.07568361,3504.9,3504.1,2.3476]
[1718970051735,2.16359106,3506.7,3504.5,2.499]
[1718970051934,2.16359106,3506.7,3505.1,2.499]
[1718970051935,4.53603272,3506.6,3505.1,2.499]
[1718970052085,2.07503272,3506.5,3505.2,0.05704885]
[1718970052287,2.07503272,3506.5,3505.3,0.05704885]
[1718970054244,2.07496382,3506.4,3505.3,0.05704885]
[1718970054386,2.07496382,3506.3,3505.3,0.05704885]
[1718970054670,2.07496447,3506.2,3505.3,0.05704885]
[1718970054816,2.07496447,3506.1,3505.3,0.05704885]
[1718970054988,2.07496447,3506.0,3505.3,0.05704885]
[1718970055191,2.07496447,3505.9,3505.3,0.05704885]
[1718970055389,3.0,3506.4,3505.3,0.05704885]
[1718970055390,2.07496579,3505.8,3505.3,0.05704885]
[1718970055593,2.07496579,3505.7,3505.3,0.05704885]
[1718970055889,3.80325,3506.4,3505.3,0.05704885]
[1718970056099,2.07492925,3506.3,3505.3,0.31265374]
[1718970056304,5.07492925,3506.3,3505.3,0.31265374]
[1718970056504,2.07492925,3506.2,3505.3,0.31265374]
[1718970056705,5.07492925,3506.2,3505.3,0.31265374]
[1718970056912,2.07492925,3506.1,3505.3,0.31265374]
[1718970057120,0.80325,3506.4,3505.3,0.31265374]
[1718970057121,3.0,3506.3,3505.3,0.31265374]
[1718970057347,2.07499545,3506.2,3505.3,0.31265374]
[1718970057648,2.07499545,3506.1,3505.4,0.04436553]
[1718970057802,2.07499545,3506.0,3505.4,0.04436553]
[1718970058003,2.07499545,3505.9,3505.4,0.04436553]
[1718970058206,2.07499545,3505.8,3505.4,0.04436553]
[1718970058438,2.07499545,3505.7,3505.4,0.04436553]
[1718970058641,2.07499545,3505.6,3505.4,0.04436553]
[1718970058943,2.07499545,3505.5,3505.4,0.32996746]
[1718970059175,2.07499545,3505.5,3505.4,0.04436553]
[1718970059438,3.0,3506.3,3505.4,0.04436553]
[1718970059439,5.07499545,3505.7,3505.4,0.04436553]
[1718970059645,2.07499545,3505.6,3504.8,6.84798959]
[1718970059826,2.07499545,3505.6,3505.5,0.04163104]
[1718970060005,2.07499545,3505.6,3504.8,6.84798959]
[1718970060231,3.0,3506.1,3504.8,6.84798959]
[1718970060514,4.64482694,3506.0,3504.9,0.04163104]
[1718970060714,2.114,3506.2,3504.9,0.04163104]
[1718970060715,7.64482694,3505.9,3504.9,0.04163104]
[1718970060916,7.64482694,3505.8,3504.9,0.04163104]
[1718970061120,5.40930963,3505.7,3504.9,0.04163104]
[1718970061358,4.64482694,3505.6,3504.9,0.04163104]
[1718970061561,4.64482694,3505.5,3504.9,0.04163104]
[1718970061721,2.4462,3505.8,3504.9,0.04163104]
[1718970061722,7.64508771,3505.4,3504.9,0.04163104]
[1718970061918,4.64509749,3505.3,3504.9,0.04163104]
[1718970062245,7.64509749,3505.2,3505.0,0.04163104]
[1718970062551,5.07560852,3505.1,3504.5,12.28]
[1718970062811,6.58303693,3505.0,3504.0,6.84798959]
[1718970063020,5.96916085,3505.0,3504.0,6.84798959]
[1718970063128,4.64621086,3504.9,3504.0,6.84798959]
[1718970063308,4.64621086,3504.8,3504.0,6.84798959]
[1718970063554,8.21346405,3504.7,3504.0,6.84798959]
[1718970063839,4.64621086,3504.6,3504.0,6.84798959]
[1718970064029,7.64621086,3504.5,3504.0,6.84798959]
[1718970064241,4.64621086,3504.4,3504.0,6.84798959]
[1718970064550,7.64621086,3504.3,3504.0,6.84798959]
[1718970064710,4.64621086,3504.2,3503.4,6.84798959]
[1718970064933,7.64621086,3504.1,3503.4,6.84798959]
[1718970065137,7.64621086,3504.1,3503.1,7.46735049]
[1718970065138,4.64678879,3504.0,3503.1,7.46735049]
[1718970065329,4.64678879,3503.9,3503.1,7.46735049]
[1718970065562,2.07642582,3503.8,3503.1,7.46735049]
[1718970065769,4.1530958,3503.7,3503.1,7.46735049]
[1718970065972,0.49444523,3503.8,3503.1,7.46735049]
[1718970065973,7.64754103,3503.6,3503.1,0.6193609]
[1718970066135,5.62369513,3503.5,3503.1,0.6193609]
[1718970066481,3.3,3504.0,3503.1,0.6193609]
[1718970066482,7.64754103,3503.4,3503.1,0.6193609]
[1718970066633,4.64754103,3503.3,3503.1,0.6193609]
[1718970066831,7.64754103,3503.2,3503.1,0.6193609]
[1718970067361,8.71229513,3503.2,3503.1,0.6193609]
[1718970067888,7.1530958,3503.2,3503.1,0.6193609]
[1718970068229,5.07666998,3503.2,3503.1,0.6193609]
[1718970068502,2.07668377,3503.2,3503.1,0.6193609]
[1718970068668,2.4281,3504.6,3503.1,0.65634869]
[1718970068911,4.15266243,3504.5,3503.6,2.114]
[1718970069064,2.07632365,3504.4,3504.1,2.4374]
[1718970069239,2.2951,3505.9,3504.4,2.114]
[1718970069435,4.64524097,3505.8,3504.5,6.84798959]
[1718970070374,4.64524097,3505.7,3504.6,0.03698779]
[1718970070591,4.64524097,3505.6,3504.6,0.03698779]
[1718970070877,4.64524097,3505.5,3504.6,0.03698779]
[1718970071115,4.6155919,3505.4,3504.6,0.03698779]
[1718970071287,2.07554049,3505.3,3504.6,0.03698779]
[1718970071442,4.15113151,3505.3,3504.6,0.03698779]
[1718970071914,4.15113151,3505.3,3504.5,6.84798959]
[1718970071915,0.2858,3504.7,3502.4,2.4273]
[1718970072000,0.2858,3504.5,3502.4,2.4273]
[1718970072137,4.43788447,3504.4,3502.4,2.4273]
[1718970072358,4.64650048,3504.3,3502.4,2.4273]
[1718970072583,4.64654048,3504.2,3502.4,2.4273]
[1718970072755,7.64654048,3504.1,3502.4,2.4273]
[1718970073105,0.04964365,3504.3,3502.4,2.4273]
[1718970073106,8.41615889,3504.0,3502.4,2.4273]
[1718970073259,2.3842,3503.8,3501.9,2.4507]
[1718970073455,4.64654048,3503.7,3501.9,2.4507]
[1718970073680,4.64654048,3503.6,3501.9,2.4507]
[1718970073888,2.3842,3503.8,3501.9,2.4507]
[1718970073889,7.15208447,3503.5,3501.9,2.4507]
[1718970074073,4.15208447,3503.4,3501.9,2.4507]
[1718970074309,3.0,3503.3,3501.9,2.4507]
[1718970074466,2.07678032,3503.2,3501.9,2.4507]
[1718970074971,5.07678032,3503.4,3501.9,2.4507]
[1718970075177,4.15349278,3503.3,3501.9,2.4507]
[1718970075372,5.07678032,3503.2,3501.9,2.4507]
[1718970075894,2.07678032,3503.2,3501.9,2.4507]
[1718970076188,5.07678032,3503.2,3501.9,2.4507]
[1718970076498,5.28445835,3503.2,3501.9,2.4507]
[1718970076864,5.28445835,3503.2,3502.4,6.84798959]
[1718970077058,2.28445835,3503.2,3502.4,6.84798959]
[1718970077426,3.0,3503.7,3503.1,0.64723278]
[1718970077609,4.15341681,3503.6,3503.1,0.64723278]
[1718970077822,0.04964365,3504.3,3503.1,0.64723278]
[1718970077823,2.0767115,3503.5,3503.1,0.64723278]
[1718970077963,2.0767115,3503.4,3503.1,0.64723278]
[1718970078156,2.0767115,3503.3,3503.1,0.64723278]
[1718970078363,2.0767115,3503.2,3503.1,0.64723278]
[1718970078787,2.0767115,3504.5,3503.1,0.64723278]
[1718970078994,5.13891871,3504.4,3503.1,0.64723278]
[1718970079212,7.15310768,3504.3,3503.1,0.64723278]
[1718970079361,4.15310768,3504.2,3503.1,0.64723278]
[1718970079561,7.15310768,3504.1,3503.1,0.64723278]
[1718970079855,4.15310768,3504.0,3503.1,0.64723278]
[1718970080085,4.15310768,3503.9,3503.1,0.64723278]
[1718970080307,3.0,3504.3,3503.1,0.64723278]
[1718970080550,2.07618839,3504.2,3503.1,0.64723278]
[1718970080664,2.07618839,3504.1,3503.1,0.64723278]
[1718970080899,0.46474178,3505.2,3503.1,0.64723278]
[1718970080900,2.07603214,3504.0,3503.1,0.64723278]
[1718970081060,2.07603214,3503.9,3503.1,0.64723278]
[1718970081357,2.07603214,3503.8,3503.1,0.64723278]
[1718970081558,0.58363418,3505.0,3503.1,0.64723278]
[1718970081559,3.0,3504.9,3503.1,0.64723278]
[1718970081786,4.81043591,3504.8,3503.2,6.84798959]
[1718970081974,4.15207249,3504.7,3503.3,0.02788596]
[1718970082166,2.4912318,3504.6,3503.3,0.77740961]
[1718970082395,2.07602455,3504.5,3503.3,0.77740961]
[1718970082573,2.07602455,3504.4,3503.3,0.77740961]
[1718970082779,2.28362701,3504.3,3503.3,0.02788596]
[1718970082983,2.07602455,3504.2,3503.3,0.02788596]
[1718970083184,2.07602455,3504.1,3503.3,0.02788596]
[1718970083418,2.07608696,3504.0,3503.3,0.02788596]
[1718970083579,2.07608696,3503.9,3503.3,0.02788596]
[1718970083775,2.07608696,3503.8,3503.3,0.02788596]
[1718970083976,2.07608696,3503.7,3503.2,6.84798959]
[1718970084200,2.07608696,3503.6,3503.3,0.02812849]
[1718970084386,2.07608696,3503.5,3503.3,0.02812849]
[1718970084597,2.07608696,3503.4,3503.2,6.84798959]
[1718970084906,2.07608696,3503.3,3503.2,6.84798959]
[1718970085113,2.07608696,3503.3,3503.1,0.6193609]
[1718970085276,3.0,3504.6,3503.1,0.6193609]
[1718970085480,3.0,3504.8,3503.1,0.6193609]
[1718970085481,4.64713511,3504.5,3503.2,6.84798959]
[1718970085691,7.64713511,3504.4,3503.2,6.84798959]
[1718970086000,8.41184862,3504.3,3503.2,6.84798959]
[1718970086211,4.64713511,3504.2,3503.2,6.84798959]
[1718970086454,7.64719254,3504.1,3503.2,6.84798959]
[1718970086701,4.64719254,3504.0,3503.2,6.84798959]
[1718970086861,8.41191179,3503.9,3503.2,6.84798959]
[1718970087069,2.07643591,3503.8,3503.2,6.84798959]
[1718970087270,2.07643591,3503.8,3503.1,0.6193609]
[1718970087569,3.0,3504.2,3503.1,0.6193609]
[1718970087570,2.07643591,3503.7,3503.1,0.6193609]
[1718970087897,2.07643591,3503.6,3503.2,0.02812849]
[1718970088070,2.07643591,3503.5,3503.2,0.02812849]
[1718970088267,2.07643591,3503.4,3503.1,0.6193609]
[1718970088468,3.0,3504.0,3503.3,0.02812849]
[1718970088663,5.03621043,3503.9,3503.1,0.6193609]
[1718970088884,5.57084335,3503.8,3503.4,0.02812849]
[1718970089080,5.57084335,3503.8,3503.1,0.6193609]
[1718970089081,2.0764504,3503.7,3503.1,0.6193609]
[1718970089266,2.0764504,3503.7,3503.5,0.02812849]
[1718970089566,3.0,3504.7,3503.1,0.6193609]
[1718970089664,4.64669205,3504.6,3503.6,0.02812849]
[1718970089957,7.6466873,3504.5,3503.2,6.84798959]
[1718970090072,5.46282503,3504.4,3503.7,0.02812849]
[1718970090272,7.6466873,3504.3,3503.2,6.84798959]
[1718970090614,5.57051267,3504.2,3503.2,6.84798959]
[1718970090830,2.57051057,3504.1,3503.3,0.0278893]
[1718970091154,5.07618331,3504.0,3503.3,0.0278893]
[1718970091288,2.07618331,3503.9,3503.3,0.0278893]
[1718970091484,3.566159,3504.6,3503.3,0.0278893]
[1718970091685,4.64643137,3504.5,3503.3,0.0278893]
[1718970091896,8.16769041,3504.4,3503.3,0.08496906]
[1718970092072,2.57033372,3504.3,3503.3,0.08496906]
[1718970092272,5.57033372,3504.2,3503.3,0.08496906]
[1718970092620,3.52125904,3504.4,3503.3,0.08496906]
[1718970092621,5.57039841,3504.1,3503.3,0.08496906]
[1718970092777,2.57039841,3504.0,3503.3,0.84020102]
[1718970093010,3.52125904,3504.4,3503.3,0.84020102]
[1718970093176,2.57031367,3504.3,3503.4,2.4737]
[1718970093380,5.57031367,3504.2,3503.5,0.08501033]
[1718970093602,2.07595098,3504.1,3503.5,0.08501033]
[1718970093809,3.0,3505.1,3503.5,0.08501033]
[1718970094015,5.18008244,3505.0,3503.6,6.84798959]
[1718970094316,7.64617958,3504.9,3503.7,0.05707207]
[1718970094521,4.64617958,3504.8,3503.7,0.08500707]
[1718970094724,8.46418782,3504.7,3503.7,0.08500707]
[1718970094893,2.57021722,3504.6,3503.7,0.08500707]
[1718970095211,2.57021722,3504.5,3503.7,0.08500707]
[1718970095383,5.82723894,3504.4,3503.7,0.08500707]
[1718970095589,3.0,3504.4,3503.7,0.08500707]
[1718970095795,2.5702226,3504.3,3503.8,0.0570752]
[1718970096000,3.0,3504.7,3503.9,0.02700383]
[1718970096185,2.57018446,3504.6,3503.9,0.02700383]
[1718970096418,2.57009327,3504.5,3503.9,0.02700383]
[1718970096601,2.57009327,3504.4,3503.9,0.02700383]
[1718970096798,3.0,3504.7,3503.9,0.02700383]
[1718970097011,2.57008189,3504.6,3503.9,0.02700383]
[1718970097214,5.57008189,3504.5,3503.9,0.08407577]
[1718970097518,2.57007738,3504.4,3503.9,0.08407577]
[1718970097690,3.0,3504.7,3503.9,0.08407577]
[1718970097889,2.57006726,3504.6,3503.9,0.08407577]
[1718970098194,5.57006726,3504.5,3503.9,0.02700383]
[1718970098395,2.57006726,3504.4,3503.9,0.05706431]
[1718970098589,2.07582356,3504.3,3504.0,0.02680342]
[1718970098857,3.0,3504.4,3503.6,6.84798959]
[1718970098999,2.0758672,3504.3,3504.1,0.02680342]
[1718970099322,3.0,3505.0,3503.6,6.84798959]
[1718970099490,4.64595314,3504.9,3504.2,0.02680342]
[1718970099683,0.36687,3505.0,3503.6,6.84798959]
[1718970099684,7.64595314,3504.8,3503.6,6.84798959]
[1718970100033,8.44740836,3504.7,3503.7,0.02679991]
[1718970100237,4.64612605,3504.6,3503.7,0.02679991]
[1718970100382,7.64612605,3504.5,3503.7,0.02679991]
[1718970100581,5.49086689,3504.4,3503.7,0.02679991]
[1718970100793,2.57028231,3504.3,3503.7,0.02679991]
[1718970101033,2.57028231,3504.2,3503.7,0.02679991]
[1718970101229,2.07599725,3504.1,3503.7,0.02679991]